{"text_format":"1","workbook":"xlsx","n_sheets":5,"sheets":["Dados Iniciais da Certificação","Dados do BUT ou SUT","Bens_Sistemas","CertificadorasEAreas","formulas"],"not_rendered":{"charts":0,"images":2,"macros":1,"external_links":2,"defined_names":14,"comments":0,"pivot_tables":0},"unopened":[],"bounds":{"document_bytes":16777216,"sheet_cells":100000,"rows_first":2000,"rows_last":500,"rows_between":2000,"halvings":0,"cell_chars":16384,"cell_head_chars":4096},"cells_cut":0,"cells_raw":0,"read":"whole","date_system":"1904"}

{"sheet":"Dados Iniciais da Certificação","index":0,"n_rows":21,"n_cols":2,"rows_kept":21,"cut":false,"hidden":false,"merged":[[0,0,0,1]]}
["Ferramenta para Cálculo do Conteúdo Local de Bens ou Sistemas de Uso Temporal"]
["Número do certificado",0]
["Número de Acreditação do Organismo de Certificação "]
["Organismo de Certificação"]
["Código YY da Área de Atividade"]
["Área de Atividade"]
["Representante Credenciado"]
["Responsável Técnico"]
["Fornecedor"]
["Endereço do Fornecedor"]
["CNPJ do Fornecedor*"]
["Inscrição Estadual/Municipal do Fornecedor *"]
["Cliente"]
["Endereço do Cliente"]
["CNPJ do Cliente"]
["Inscrição Estadual/Municipal do Cliente"]
["BLOCOS / CAMPOS**"]
[]
[]
["* Não aplicável no caso de admissão temporária / Exportação Ficta de bens/sistemas junto a empresa estrangeira."]
["** Preenchimento Opcional"]

{"sheet":"Dados do BUT ou SUT","index":1,"n_rows":16,"n_cols":6,"rows_kept":16,"cut":false,"hidden":false,"merged":[[0,0,0,5],[2,3,2,4]]}
["Ferramenta para Cálculo do Conteúdo Local de Bens ou  Sistemas de Uso Temporal"]
[]
["Data da emissão do certificado do BUT ou SUT",null,null,"Moeda",null,"Taxa de Conversão"]
["Fornecedor",{"$f":"'Dados Iniciais da Certificação'!B9","v":0},null,1,"REAL",1]
["Objeto do Contrato",null,null,2,null,0]
["Características do Contrato",null,null,3,null,0]
["Número dos Documentos Fiscais de Locação / Afretamento",null,null,4,null,0]
["Data de emissão dos Documentos Fiscais de Locação / Afretamento",null,null,5,null,0]
["Número do Certificado do Bem ou Sistema",null,null,6,null,0]
["Moeda do Contrato",null,null,7,null,0]
[{"$f":"\"Valor total do contrato (\"&B10&\")\"","v":"Valor total do contrato ()"},null,null,8,null,0]
[null,null,null,9,null,0]
["Valor total do contrato (R$)",{"$f":"IF($B$11=\"\",\"\",$B$11*VLOOKUP(B10,taxas,2,0))","v":""},null,10,null,0]
["Conteúdo Local Certificado do Bem ou Sistema (CLb)",{"$f":"Bens_Sistemas!K4","v":""}]
[]
["CONTEÚDO LOCAL CERTIFICADO DO BUT ou SUT (CLa)",{"$f":"IF(B13=\"\",0,B13*B14)","v":0}]

{"sheet":"Bens_Sistemas","index":2,"n_rows":21,"n_cols":14,"rows_kept":21,"cut":false,"hidden":false,"merged":[[0,0,0,13]]}
["Ferramenta para Cálculo do Conteúdo Local de Bens ou Sistemas para Uso Temporal"]
["Bens ou Sistemas","Características","Período","Unidade de tempo","Valor total da Locação / Afretamento por período (moeda de origem)","Moeda de Origem","Valor total da Locação / Afretamento por período (R$)","Taxa de utilização por período\n(R$)","Valor Total atribuido pelo afretamento / locação\n(R$)","% de Conteúdo Local Certificado","Conteúdo Local","Fornecedor","Fabricante","Número do Certificado de CL"]
["( a )","( b )","( c )","( d )"," ( e )","( f )","( g )"," ( h )","( i )","( j )"," ( k )"," ( l )"," ( m )","( n )"]
[null,null,null,null,null,null,null,null,{"$f":"SUM($I$5:$I$6001)","v":0},null,{"$f":"IF(I4=0,\"\",SUM($K$5:$K$65536)/I4)","v":""}]
[]
[null,null,null,null,null,null,{"$f":"IF(F6=\"\",\"\",E6*VLOOKUP(F6,taxas,2,0))","v":""},null,{"$f":"C6*IF(G6=\"\",H6,G6)","v":0},null,{"$f":"I6*J6","v":0}]
[null,null,null,null,null,null,{"$f":"IF(F7=\"\",\"\",E7*VLOOKUP(F7,taxas,2,0))","v":""},null,{"$f":"C7*IF(G7=\"\",H7,G7)","v":0},null,{"$f":"I7*J7","v":0}]
[null,null,null,null,null,null,"",null,{"$f":"C8*IF(G8=\"\",H8,G8)","v":0},null,{"$f":"I8*J8","v":0}]
[null,null,null,null,null,null,"",null,{"$f":"C9*IF(G9=\"\",H9,G9)","v":0},null,0]
[null,null,null,null,null,null,"",null,{"$f":"C10*IF(G10=\"\",H10,G10)","v":0},null,0]
[null,null,null,null,null,null,"",null,0,null,0]
[null,null,null,null,null,null,"",null,0,null,0]
[null,null,null,null,null,null,"",null,0,null,0]
[null,null,null,null,null,null,"",null,0,null,0]
[null,null,null,null,null,null,"",null,0,null,0]
[null,null,null,null,null,null,"",null,0,null,0]
[null,null,null,null,null,null,"",null,{"$f":"C17*IF(G17=\"\",H17,G17)","v":0},null,{"$f":"I17*J17","v":0}]
[null,null,null,null,null,null,"",null,{"$f":"C18*IF(G18=\"\",H18,G18)","v":0},null,{"$f":"I18*J18","v":0}]
[null,null,null,null,null,null,"",null,{"$f":"C19*IF(G19=\"\",H19,G19)","v":0},null,{"$f":"I19*J19","v":0}]
[]
["-"]

{"sheet":"CertificadorasEAreas","index":3,"n_rows":101,"n_cols":7,"rows_kept":101,"cut":false,"hidden":true,"merged":[]}
["Código","Empresa Credenciada",null,"Código - YY","Código","Descrição das Áreas"]
[1,"BUREAU VERITAS DO BRASIL SOCIEDADE CLASSIFICADORA E CERTIFICADORA LTDA.",null,1,"Ge001","Geologia e Geofísica",{"$f":"E2&\" - \"&F2","v":"Ge001 - Geologia e Geofísica"}]
[2,"ABS GROUP SERVICES DO BRASIL LTDA",null,2,"Pe001","Sondas de Perfuração",{"$f":"E3&\" - \"&F3","v":"Pe001 - Sondas de Perfuração"}]
[3,"DET NORSKE VERITAS LTDA",null,3,"Pe002","Apoio Logístico e Operacional","Pe002 - Apoio Logístico e Operacional"]
[4,"FIRST ENGENHARIA LTDA",null,4,"Pe003","Perfuração, Completação e Avaliação de Poços","Pe003 - Perfuração, Completação e Avaliação de Poços"]
[5,"TERRATEK TECNOLOGIA LTDA",null,5,"En001","Engenharia Básica e de Detalhamento","En001 - Engenharia Básica e de Detalhamento"]
[6,"GALENA ENGENHARIA LTDA",null,6,"En002","Gerenciamento, Construção, Montagem e Comissionamento.","En002 - Gerenciamento, Construção, Montagem e Comissionamento."]
[7,"LUIZ MATTOS E ENGENHEIROS ASSOCIADOS LTDA - EPP",null,7,"En003","Sistemas Elétricos, de Controle, Instrumentação e Medição.","En003 - Sistemas Elétricos, de Controle, Instrumentação e Medição."]
[8,"MILLENIUM SENIOR CONSULTORES EMPRESARIAIS LTDA",null,8,"En004","Sistemas de Telecomunicações","En004 - Sistemas de Telecomunicações"]
[9,"KOPSIA ENGENHARIA E TELECOMUNICAÇÕES LTDA",null,9,"Es001","Oleodutos, Gasodutos e Tanques de Armazenamento.","Es001 - Oleodutos, Gasodutos e Tanques de Armazenamento."]
[10,"SGS DO BRASIL LTDA",null,10,"Es002","Bombas de Transferência.","Es002 - Bombas de Transferência."]
[11,"CÂMARA CONSULTORIA EM PROJETOS LTDA",null,11,"Up001","Unidades de Compressão.","Up001 - Unidades de Compressão."]
[12,"L. A. FALCÃO BAUER CENTRO TECNOLÓGICO DE CONTROLE DE QUALIDADE LTDA",null,12,"Up002","Unidades de Geração de Energia Elétrica.","Up002 - Unidades de Geração de Energia Elétrica."]
[13,"Openseas Engenharia Naval Ltda.",null,13,"Up003","Unidades de Geração de Injeção de Vapor.","Up003 - Unidades de Geração de Injeção de Vapor."]
[14,"Certifix Consultoria e Gestão Ltda",null,14,"Up004","Unidade de Tratamento e Injeção de Água.","Up004 - Unidade de Tratamento e Injeção de Água."]
[15,"INSTITUTO LATINOAMERICANO DE LA CALIDAD - INLAC",null,15,"Es003","Equipamentos e Controle Submarinos: linhas rígidas, flexíveis, umbilicais e manifolds.","Es003 - Equipamentos e Controle Submarinos: linhas rígidas, flexíveis, umbilicais e manifolds."]
[16,"TUV RHEINLAND DO BRASIL LTDA",null,16,"Es004","Monobóias e Quadro de Bóias.","Es004 - Monobóias e Quadro de Bóias."]
[17,"NSG CONSULTORIA LTDA",null,17,"Up005","Sistema de Processamento e Tratamento de Óleo.","Up005 - Sistema de Processamento e Tratamento de Óleo."]
[18,"ZME SOLUÇÕES EMPRESARIAIS LTDA ME",null,18,"Up006","Sistema de Processamento e Tratamento de Gás Natural.","Up006 - Sistema de Processamento e Tratamento de Gás Natural."]
[19,"CCL CERTIFICADORA DE CONTEUDO LOCAL LTDA - ME",null,19,"Up007","Construção Naval (casco, turret, ancoragem e sistemas navais).","Up007 - Construção Naval (casco, turret, ancoragem e sistemas navais)."]
[20,"ABILITY CERTIFICADORA E CONSULTORIA LTDA",null,20,"Up008","Segurança Operacional","Up008 - Segurança Operacional"]
[21,"FUNDAÇÃO CARLOS ALBERTO VANZOLINI",null,21,"En005","Obras Civis e Utilidades","En005 - Obras Civis e Utilidades"]
[22,"ASSOCIACAO NCC CERTIFICACOES DO BRASIL"]
[23,"CONCREMAT ENGENHARIA E TECNOLOGIA S/A"]
[24,"NK NIPPON KAIJI KYOKAI DO BRASIL LTDA"]
[25,"B B L BUREAU BRASILEIRO LTDA"]
[26,"QUALITY ASSURANCE CONSULTORIA, TREINAMENTOS E SOLUCOES INTEGRADAS LTDA"]
[27,"ASSOCIACAO BRASILEIRA DE ENSAIOS NAO DESTRUTIVOS E INSPECAO - ABENDE"]
[28,"RINA BRASIL SERVICOS TECNICOS LTDA."]
[29,"TECETEC - TECNOLOGIA EM ENSAIOS TECNICOS S/S LTDA - ME"]
[30,"ARCADIS LOGOS S.A."]
[31,"COMPERGY QUALIDADE LTDA."]
[32,"METALVIX ENGENHARIA E CONSULTORIA LTDA."]
[33,"ATLANTIDA - SOLUCOES EM QUALIDADE E CERTIFICACOES LTDA - ME"]
[34,"WELLCON TREINAMENTO E CONSULTORIA LTDA"]
[35,"NEWS INSPECOES LTDA"]
[36,"INTERTEK INDUSTRY SERVICES BRASIL LTDA"]
[37]
[38]
[39]
[40]
[41]
[42]
[43]
[44]
[45]
[46]
[47]
[48]
[49]
[50]
[51]
[52]
[53]
[54]
[55]
[56]
[57]
[58]
[59]
[60]
[61]
[62]
[63]
[64]
[65]
[66]
[67]
[68]
[69]
[70]
[71]
[72]
[73]
[74]
[75]
[76]
[77]
[78]
[79]
[80]
[81]
[82]
[83]
[84]
[85]
[86]
[87]
[88]
[89]
[90]
[91]
[92]
[93]
[94]
[95]
[96]
[97]
[98]
[99]
[100]

{"sheet":"formulas","index":4,"n_rows":2,"n_cols":14,"rows_kept":2,"cut":false,"hidden":true,"merged":[]}
["Bens ou Sistemas","Características","Período","Unidade de tempo","Valor total da Locação / Afretamento por período (moeda de origem)","Moeda de Origem","Valor total da Locação / Afretamento por período (R$)","Taxa de utilização por período\n(R$)","Valor Total atribuido pelo afretamento / locação\n(R$)","% de Conteúdo Local Certificado","Conteúdo Local","Fornecedor","Fabricante","Número do Certificado de CL"]
[null,null,null,null,null,null,{"$f":"IF(F2=\"\",\"\",E2*VLOOKUP(F2,taxas,2,0))","v":""},null,{"$f":"C2*IF(G2=\"\",H2,G2)","v":0},null,{"$f":"I2*J2","v":0}]